bitfinex/quotes_ETHUSD_20250210
["timestamp","ask_amount","ask_price","bid_price","bid_amount"]
[1739158911504,3.7797,2645.8,2644.0,2.0]
[1739158911505,3.78014,2645.4,2644.5,0.8168]
[1739158911709,3.77928,2646.0,2644.5,0.8168]
[1739158911875,3.7796,2645.8,2645.0,3.78066]
[1739158912277,3.7796,2645.8,2645.1,3.78052]
[1739158912479,3.77943,2645.9,2644.7,2.0]
[1739158912700,3.77932,2646.0,2645.2,3.78029]
[1739158913068,0.18452153,2646.8,2645.2,3.78029]
[1739158913069,0.7601,2646.5,2645.2,0.8013]
[1739158913310,3.77875,2646.4,2645.6,3.77986]
[1739158913489,3.77875,2646.4,2645.4,3.78014]
[1739158913692,0.7601,2646.9,2645.8,3.77957]
[1739158913881,3.77861,2646.5,2645.8,3.77957]
[1739158914289,0.7601,2646.9,2645.3,3.78028]
[1739158914290,3.77911,2646.2,2645.3,3.78028]
[1739158914489,3.77914,2646.2,2645.2,4.58159]
[1739158914692,0.7601,2646.9,2645.2,4.58159]
[1739158914693,0.7601,2646.9,2645.6,2.0]
[1739158914878,0.7601,2646.9,2646.1,3.77914]
[1739158915097,4.53812,2646.9,2646.1,3.77914]
[1739158915404,3.77827,2646.8,2646.0,3.77925]
[1739158915710,3.77857,2646.6,2645.9,3.77942]
[1739158916081,3.77818,2646.8,2646.0,3.77928]
[1739158916315,3.77832,2646.7,2646.0,3.77928]
[1739158916606,3.77848,2646.6,2645.9,3.77941]
[1739158916913,3.77856,2646.6,2645.8,3.77946]
[1739158917274,0.03894278,2646.5,2645.8,3.77946]
[1739158917620,3.77929,2646.0,2645.3,0.8013]
[1739158917913,3.77929,2646.0,2645.3,4.58158]
[1739158918073,0.03894278,2645.9,2645.3,4.58158]
[1739158918274,0.03894278,2645.9,2644.9,0.8013]
[1739158918275,3.77983,2645.7,2644.9,0.8013]
[1739158918508,3.78031,2645.3,2644.6,3.78126]
[1739158918718,3.78015,2645.4,2644.7,3.78101]
[1739158918877,0.7601,2645.8,2645.3,3.78027]
[1739158919071,3.77975,2645.7,2645.1,3.78055]
[1739158919313,0.7601,2645.8,2644.7,3.78112]
[1739158919618,0.03836821,2645.7,2644.5,0.8013]
[1739158919815,3.78048,2645.2,2644.5,0.8013]
[1739158919985,3.78071,2645.1,2644.3,3.7817]
[1739158920167,3.78083,2645.0,2644.3,3.7817]
[1739158920371,3.78127,2644.7,2644.1,0.8013]
[1739158920626,3.78096,2644.9,2643.8,0.8013]
[1739158920921,7.56169,2645.0,2644.1,3.78196]
[1739158921065,3.78102,2644.8,2644.1,3.78196]
[1739158921281,3.78115,2644.7,2644.1,3.78196]
[1739158921487,3.78154,2644.5,2643.8,4.5836]
[1739158921710,3.78181,2644.3,2643.6,3.78271]
[1739158921897,0.03787176,2644.2,2643.7,3.78255]
[1739158922097,0.03787176,2644.2,2644.0,3.78203]
[1739158922323,0.7601,2644.7,2643.8,3.7824]
[1739158922486,0.37463788,2646.2,2643.5,2.15958697]
[1739158922487,0.03787176,2644.6,2644.3,3.7816]
[1739158922693,3.78011,2645.5,2644.3,3.78159]
[1739158922694,3.7802,2645.4,2644.3,3.78159]
[1739158923028,0.03601627,2645.3,2644.9,3.78074]
[1739158923231,3.77991,2645.6,2644.9,3.78074]
[1739158923394,0.03601627,2645.2,2644.9,3.78075]
[1739158923584,3.7799,2645.6,2644.9,3.78075]
[1739158923930,3.7796,2645.8,2645.0,3.78071]
[1739158924104,0.03601627,2645.5,2645.2,3.78037]
[1739158924297,3.7796,2645.8,2645.0,3.78071]
[1739158924502,0.03601627,2645.7,2644.8,4.53555]
[1739158924815,3.7801,2645.5,2644.9,3.78082]
[1739158925055,0.03601627,2645.6,2644.8,0.7546]
[1739158925238,0.03601627,2645.6,2643.7,4.81161]
[1739158925239,3.78111,2644.8,2644.1,3.782]
[1739158925392,3.78111,2644.8,2644.0,0.7546]
[1739158925597,3.78139,2644.6,2644.0,4.53673]
[1739158925928,0.03631255,2644.5,2644.0,4.53673]
[1739158926514,0.03631255,2644.5,2643.6,2.8087]
[1739158926737,3.81775255,2644.5,2643.9,3.78225]
[1739158927028,0.03631255,2644.5,2644.0,3.78204]
[1739158927189,0.03631255,2644.5,2643.9,3.78225]
[1739158927385,0.03631255,2644.5,2643.6,2.8087]
[1739158927641,0.03631255,2644.5,2644.4,3.78157]
[1739158928018,3.78028,2645.3,2644.4,3.78157]
[1739158928195,3.78128,2644.7,2644.0,3.78208]
[1739158928391,3.78128,2644.7,2644.1,3.78199]
[1739158928698,0.03601627,2644.6,2644.1,0.8087]
[1739158928902,0.7543,2645.5,2644.9,3.78072]
[1739158929195,0.03601627,2645.4,2644.1,0.8087]
[1739158929423,0.7543,2644.8,2644.1,3.78186]
[1739158929730,0.7543,2644.8,2644.2,3.78175]
[1739158929931,0.03617313,2644.7,2644.5,3.78142]
[1739158930134,0.7543,2645.1,2644.6,3.78129]
[1739158930343,0.03617313,2645.0,2644.7,3.78104]
[1739158930499,0.18564009,2646.3,2644.7,3.78101]
[1739158930696,3.78038,2645.3,2644.5,3.78135]
[1739158930895,0.7543,2645.5,2644.4,0.8087]
[1739158931098,3.81644313,2645.4,2644.8,3.78096]
[1739158931333,1.49829872,2645.9,2645.3,3.78028]
[1739158931628,3.77984,2645.7,2645.0,3.78062]
[1739158931830,3.81588313,2645.8,2645.2,3.7804]
[1739158932041,0.7543,2645.9,2645.5,3.78]
[1739158932212,0.03617313,2645.7,2645.3,3.78024]
[1739158932390,4.53376,2645.9,2645.3,3.78024]
[1739158932590,0.03617313,2645.6,2645.3,3.78024]
[1739158932821,4.53376,2645.9,2645.3,3.78024]
[1739158933021,7.32825139,2647.2,2645.4,3.78014]
[1739158933022,0.03617313,2645.5,2645.4,3.78014]
[1739158933338,3.77919,2646.1,2645.3,3.78024]
[1739158933540,0.03617313,2646.0,2645.4,3.78014]
[1739158933743,3.77951,2645.9,2645.1,3.78052]
[1739158933947,3.77973,2645.7,2645.1,3.78052]
[1739158934146,0.03617313,2645.8,2645.2,3.78042]
[1739158934308,7.55907,2645.9,2645.2,3.78042]
[1739158934512,0.03617313,2645.8,2645.3,3.78015]
[1739158934709,0.03617313,2645.8,2645.6,3.77973]
[1739158934953,4.53317,2646.3,2645.6,3.77973]
[1739158935110,4.53317,2646.3,2645.1,3.78057]
[1739158935111,3.77968,2645.8,2645.1,3.78053]
[1739158935309,0.03718367,2645.7,2645.3,3.78022]
[1739158935505,3.77961,2645.8,2644.9,3.78083]
[1739158935705,7.55992,2645.6,2644.9,3.78083]
[1739158935940,3.7802,2645.4,2644.8,0.8087]
[1739158936145,3.81747367,2645.3,2644.5,3.78138]
[1739158936454,3.78068,2645.1,2644.5,3.78141]
[1739158936657,3.81755367,2645.3,2644.7,3.78111]
[1739158936815,3.81755367,2645.3,2644.5,3.78141]
[1739158936816,3.78046,2645.2,2644.6,3.78128]
[1739158937009,0.03718367,2645.2,2644.7,3.78111]
[1739158937217,3.78109,2644.8,2644.1,4.59061]
[1739158937634,3.78082,2645.0,2644.3,3.78169]
[1739158937807,0.03738408,2644.7,2644.3,3.7816]
[1739158938011,3.78095,2644.9,2644.3,3.7816]
[1739158938234,0.03738408,2644.6,2644.3,3.7816]
[1739158938555,0.03738408,2644.5,2644.4,3.78153]
[1739158939057,3.78023,2645.4,2644.2,3.78186]
[1739158939258,3.78023,2645.4,2644.1,3.8087]
[1739158939259,3.78047,2645.2,2644.6,3.78127]
[1739158939560,3.7808,2645.0,2644.3,3.78162]
[1739158940102,3.7808,2645.0,2644.2,3.78186]
[1739158940258,3.81824695,2644.9,2644.2,3.78186]
[1739158940463,3.81824695,2644.9,2644.2,3.78177]
[1739158940665,0.03729695,2644.9,2644.4,3.78156]
[1739158940953,3.78043,2645.2,2644.1,0.8087]
[1739158941122,0.03719238,2644.8,2644.5,3.78132]
[1739158941324,3.78069,2645.1,2644.5,3.78132]
[1739158941559,0.03719238,2645.0,2644.5,3.78132]
[1739158941852,0.03719238,2645.0,2644.3,3.78164]
[1739158941853,0.03719238,2645.0,2644.2,7.56372]
[1739158942011,0.03719238,2645.0,2644.9,3.78086]
[1739158942213,0.7543,2645.5,2644.4,3.78157]
[1739158942445,0.7543,2645.5,2645.2,3.78033]
[1739158942647,0.03722724,2645.4,2645.2,3.78033]
[1739158942850,0.03722724,2645.4,2645.3,3.78028]
[1739158943021,4.53375,2645.9,2645.3,3.78028]
[1739158943225,0.7543,2645.9,2645.5,3.77999]
[1739158943425,0.76566651,2646.2,2645.6,3.77976]
[1739158943640,4.54470651,2646.2,2645.6,3.77976]
[1739158943871,0.76566651,2646.2,2645.7,3.77968]
[1739158944068,0.76566651,2646.2,2645.6,3.77976]
[1739158944272,0.76566651,2646.2,2645.7,3.7797]
[1739158944469,0.7543,2646.3,2645.8,3.77946]
[1739158944971,0.7543,2646.3,2645.7,3.7797]
[1739158945174,5.28676702,2646.3,2645.7,3.7797]
[1739158945359,1.50777702,2646.3,2645.7,3.7797]
[1739158945659,1.50777702,2646.3,2645.8,3.77957]
[1739158945855,5.28666702,2646.3,2645.7,3.7797]
[1739158946364,0.7543,2646.3,2645.7,3.7797]
[1739158946679,0.7543,2646.3,2646.1,3.77911]
[1739158946861,0.7543,2646.7,2646.3,3.77875]
[1739158947037,3.77853,2646.6,2646.0,3.77928]
[1739158947232,3.7791,2646.2,2645.5,3.77991]
[1739158947534,0.7543,2646.7,2645.3,4.58898]
[1739158947535,0.7543,2646.7,2645.3,0.8087]
[1739158947848,3.77843,2646.6,2646.0,3.77926]
[1739158948246,3.77858,2646.5,2645.8,3.77955]
[1739158948478,0.7543,2646.7,2645.3,0.8087]
[1739158948663,0.7543,2646.7,2645.9,3.77934]
[1739158948861,3.77886,2646.3,2645.7,3.7797]
[1739158949035,0.7543,2646.7,2645.3,0.8087]
[1739158949234,3.77928,2646.0,2645.5,3.77993]
[1739158949664,0.03882087,2645.9,2645.5,3.77993]
[1739158950066,3.81838087,2645.9,2645.3,3.78026]
[1739158950260,3.81838087,2645.9,2645.1,3.78053]
[1739158950261,3.77958,2645.8,2645.1,3.78053]
[1739158950461,7.55929,2645.8,2645.1,3.78045]
[1739158950637,0.03854232,2645.7,2645.2,3.78043]
[1739158950844,0.03854232,2645.7,2645.1,3.78045]
[1739158951051,0.03854232,2645.7,2645.6,3.77986]
[1739158951345,3.7794,2646.0,2645.4,3.78]
[1739158951547,0.03682944,2645.9,2645.4,3.78]
[1739158951752,3.78011,2645.5,2644.8,3.7809]
[1739158951981,0.7543,2645.8,2644.6,0.8087]
[1739158952184,4.53396,2645.8,2645.1,3.78052]
[1739158952386,0.7543,2645.8,2644.8,3.78088]
[1739158952543,0.03682944,2645.7,2645.5,3.77993]
[1739158952738,0.7991,2646.2,2645.9,3.77943]
[1739158953067,0.03682944,2646.1,2645.7,3.77969]
[1739158953250,0.03682944,2646.1,2645.5,3.77993]
[1739158953776,0.7991,2646.2,2645.5,3.77991]
[1739158953980,0.7991,2646.2,2645.3,3.78021]
[1739158954188,0.7717684,2646.4,2645.9,3.77938]
[1739158954368,3.77887,2646.3,2645.7,3.77965]
[1739158954571,0.03682944,2646.3,2645.8,3.77955]
[1739158954758,0.03682944,2646.3,2646.1,3.779]
[1739158954948,6.00662088,2646.9,2646.2,3.779]
[1739158954949,3.02772088,2646.9,2646.2,3.779]
[1739158955149,0.03682944,2646.8,2646.3,3.77886]
[1739158955378,0.03682944,2646.8,2646.3,3.77882]
[1739158955981,4.56377611,2646.8,2646.1,3.77903]
[1739158956182,3.77844,2646.6,2646.0,3.77922]
[1739158956490,3.77926,2646.1,2645.4,3.78004]
[1739158956646,3.77967,2645.8,2645.2,3.78035]
[1739158957042,4.55979,2646.0,2645.2,3.78035]
[1739158957281,0.03682944,2645.7,2645.6,3.77986]
[1739158957483,3.77887,2646.3,2645.8,3.77954]
[1739158957682,0.7805,2646.4,2645.8,3.77951]
[1739158957889,0.03682944,2646.2,2645.6,3.77983]
[1739158958083,3.77929,2646.0,2645.2,3.78041]
[1739158958287,3.77959,2645.8,2645.2,3.78041]
[1739158958646,0.03682944,2645.7,2645.2,3.78041]
[1739158958875,3.77995,2645.6,2644.9,3.78077]
[1739158959420,3.78025,2645.4,2644.8,3.78091]
[1739158959577,3.81685944,2645.5,2644.8,3.78089]
[1739158959772,3.78003,2645.5,2644.9,3.78085]
[1739158959972,0.03682944,2645.4,2644.4,2.7662]
[1739158960314,0.03682944,2645.4,2645.2,3.78033]
[1739158960515,4.56024,2645.7,2645.2,3.78033]
[1739158960713,0.03682944,2645.3,2645.2,3.78033]
[1739158961020,0.03682944,2645.3,2645.0,3.78067]
[1739158961219,0.7805,2645.7,2644.4,2.7662]
[1739158961421,0.03682944,2645.2,2644.4,6.54771]
[1739158961593,3.77988,2645.6,2644.9,6.78083]
[1739158961917,3.78005,2645.5,2644.9,6.78083]
[1739158962114,3.78015,2645.4,2644.9,3.0]
[1739158962332,0.03682944,2645.5,2644.4,0.7662]
[1739158962478,3.78055,2645.2,2644.4,0.7662]
[1739158962810,0.81732944,2645.1,2644.7,3.0]
[1739158963014,0.03682944,2645.1,2644.7,3.0]
[1739158963222,0.03682944,2645.1,2645.0,6.78071]
[1739158963386,4.55420034,2645.8,2645.1,3.0]
[1739158963595,3.77982,2645.7,2645.1,3.0]
[1739158964002,3.77989,2645.6,2644.8,3.7809]
[1739158964210,3.78068,2645.1,2644.4,3.78148]
[1739158964506,3.78,2645.5,2644.6,3.78116]
[1739158964672,0.03682944,2645.0,2644.7,3.0]
[1739158964875,3.78072,2645.0,2644.5,3.0]
[1739158965076,3.7811,2644.8,2644.2,3.78182]
[1739158965316,0.03682944,2644.9,2644.3,3.78171]
[1739158965521,3.78091,2644.9,2644.3,3.0]
[1739158965820,3.78091,2644.9,2644.0,4.54828]
[1739158965821,3.7811,2644.8,2644.1,6.7734475]
[1739158966020,4.56127,2645.0,2644.3,3.78171]
[1739158966192,0.03615837,2644.7,2644.5,3.0]
[1739158966409,3.78052,2645.2,2644.5,3.78132]
[1739158966608,0.03615837,2644.6,2644.2,3.78176]
[1739158966938,0.75350139,2645.0,2644.0,0.7662]
[1739158967241,4.56083,2645.3,2644.5,3.0]
[1739158967242,0.7805,2645.3,2644.5,3.0]
[1739158967395,0.03615837,2644.9,2644.8,3.78097]
[1739158967739,0.7805,2645.8,2644.7,3.0]
[1739158967941,0.7805,2645.8,2645.3,3.78018]
[1739158968241,0.03615837,2645.7,2645.3,3.78018]
[1739158968600,0.7805,2645.8,2645.4,3.78005]
[1739158968799,0.7805,2645.8,2645.3,3.78018]
[1739158970250,0.7805,2645.8,2645.5,3.77993]
[1739158970711,0.7805,2646.2,2645.6,3.77975]
[1739158970915,0.7805,2646.2,2645.6,3.77976]
[1739158971119,0.7805,2646.2,2645.7,3.77963]
[1739158971316,0.7805,2646.2,2645.5,3.0]
[1739158971541,0.7805,2646.2,2645.7,3.77962]
[1739158971848,0.77409342,2646.5,2645.9,3.77931]
[1739158972032,0.77409342,2646.5,2646.0,3.77925]
[1739158972232,0.77409342,2646.5,2645.9,3.77931]
[1739158972433,0.77409342,2646.5,2646.0,3.77928]
[1739158972650,0.77409342,2646.5,2645.9,3.77931]
[1739158973239,4.55267342,2646.5,2645.9,3.77931]
[1739158973438,4.55267342,2646.5,2645.7,7.55928]
[1739158973644,3.77897,2646.3,2645.5,3.0]
[1739158973943,3.77951,2645.9,2645.2,3.78032]
[1739158974156,0.7732,2646.2,2645.0,3.0]
[1739158974314,0.7732,2646.2,2645.1,3.0]
[1739158974515,0.7732,2646.2,2645.6,3.77973]
[1739158974726,3.77928,2646.1,2645.4,3.78014]
[1739158975051,3.77928,2646.0,2645.4,3.78014]
[1739158975250,3.77956,2645.9,2645.2,3.78039]
[1739158975746,3.77827,2646.8,2644.8,0.99173606]
[1739158975747,3.77884,2646.4,2645.5,3.77992]
[1739158975965,0.77202515,2646.4,2645.7,3.77971]
[1739158976141,0.77202515,2646.4,2645.9,3.77932]
[1739158976338,0.7732,2646.6,2645.5,0.8002]
[1739158976515,1.51676897,2646.6,2646.1,3.77904]
[1739158976712,1.51676897,2646.6,2646.2,3.77897]
[1739158976927,1.51676897,2646.6,2646.1,3.77904]
[1739158977128,1.51676897,2646.6,2645.7,3.77967]
[1739158977318,1.51676897,2646.6,2645.6,3.77974]
[1739158977528,1.51676897,2646.6,2645.9,3.77932]
[1739158977855,1.51676897,2646.6,2646.2,3.77889]
[1739158978060,0.7732,2647.0,2646.6,3.77834]
[1739158978259,0.7732,2647.0,2646.2,3.0]
[1739158978425,0.7732,2647.0,2646.7,3.77819]
[1739158978630,0.7732,2647.0,2646.4,3.77858]
[1739158978825,0.03624536,2646.9,2646.5,3.77857]
[1739158979029,3.77823,2646.8,2646.2,3.77896]
[1739158979234,0.03624536,2646.9,2646.5,3.77852]
[1739158979531,0.03624536,2646.9,2646.3,3.7788]
[1739158979532,0.03793554,2646.7,2646.3,3.7788]
[1739158979727,3.77811,2646.9,2646.3,3.7788]
[1739158980053,3.77806,2646.9,2646.1,3.77906]
[1739158980256,3.77831,2646.7,2646.1,3.77906]
[1739158980613,3.77831,2646.7,2646.1,7.55808]
[1739158980809,3.81635331,2646.6,2645.7,3.77961]
[1739158981015,0.7732,2646.5,2645.7,3.77961]
[1739158981214,4.58959753,2646.5,2645.9,3.7794]
[1739158981413,3.77875,2646.4,2645.7,3.77961]
[1739158982060,0.03778753,2646.3,2645.5,3.77994]
[1739158982218,3.77909,2646.2,2645.5,3.77988]
[1739158982416,3.77924,2646.1,2645.5,3.77988]
[1739158982664,0.03751759,2646.1,2645.5,3.77988]
[1739158982834,3.7793,2646.0,2645.3,3.78018]
[1739158983050,0.74714447,2646.4,2645.2,3.78042]
[1739158983051,0.7732,2646.3,2645.2,3.78042]
[1739158983216,0.7732,2645.7,2645.0,7.5612]
[1739158983421,0.7732,2645.7,2645.0,3.78059]
[1739158983633,3.78024,2645.4,2644.6,3.78126]
[1739158983921,3.78029,2645.3,2644.6,3.78126]
[1739158984123,0.7732,2645.1,2644.4,3.78151]
[1739158984321,3.78089,2644.9,2644.2,4.34268545]
[1739158984639,0.7732,2645.1,2644.2,4.34268545]
[1739158984640,0.03685551,2644.8,2644.3,3.78171]
[1739158985031,3.78076,2645.0,2644.3,3.78171]
[1739158985236,0.03685551,2644.7,2644.3,3.78171]
[1739158985440,3.78076,2645.0,2644.3,3.78171]
[1739158985620,0.03685551,2644.6,2644.2,3.78184]
[1739158985823,0.7732,2645.1,2644.2,3.78174]
[1739158986051,0.03685551,2644.5,2644.3,3.78161]
[1739158986255,0.7732,2645.1,2644.4,3.78146]
[1739158986573,4.55378,2645.1,2644.4,3.78146]
[1739158986865,0.7732,2645.1,2644.4,3.78146]
[1739158987069,0.8139,2645.5,2644.3,5.0]
[1739158987369,0.8139,2645.5,2644.4,3.78157]
[1739158987521,3.78054,2645.2,2644.5,3.78142]
[1739158987721,3.7795,2645.9,2644.2,3.78176]
[1739158987722,3.78093,2644.9,2644.2,3.78176]
[1739158988029,0.8139,2644.8,2644.3,3.78169]
[1739158988227,0.8139,2644.8,2644.4,3.78157]
[1739158988629,3.78062,2645.1,2644.4,3.78157]
[1739158988876,3.78062,2645.1,2644.5,3.78143]
[1739158989188,0.8139,2645.2,2644.8,3.78091]
[1739158989330,4.59433,2645.2,2644.6,3.78126]
[1739158989675,3.7807,2645.1,2644.4,3.78153]
[1739158989975,3.78081,2645.0,2644.4,3.78153]
[1739158990472,0.8139,2645.2,2644.6,3.78124]
[1739158990764,0.8139,2645.2,2644.8,3.78093]
[1739158991151,0.8139,2645.5,2645.0,3.78058]
[1739158991339,3.78016,2645.4,2644.7,3.78107]
[1739158991541,3.78016,2645.4,2644.8,3.78089]
[1739158991736,3.78016,2645.4,2644.7,3.78107]
[1739158991964,0.8139,2645.5,2644.9,3.78084]
[1739158992170,0.8139,2645.5,2645.0,3.78062]
[1739158992350,4.594,2645.5,2644.9,3.78084]
[1739158992521,3.78017,2645.4,2644.7,3.78105]
[1739158992753,4.59396,2645.5,2644.8,3.78088]
[1739158992953,4.59396,2645.5,2644.3,3.0]
[1739158992954,0.8139,2645.5,2644.3,3.0]
[1739158993206,3.78037,2645.3,2644.6,3.78119]
[1739158993502,3.78052,2645.2,2644.6,3.78119]
[1739158993699,4.55257144,2645.2,2644.6,3.78119]
[1739158993860,3.7803,2645.3,2644.8,3.78092]
[1739158994060,0.8139,2645.5,2645.0,3.78063]
[1739158995306,0.8139,2645.5,2644.9,3.78074]
[1739158995600,4.59391,2645.5,2644.9,7.56149]
[1739158995806,0.8139,2645.5,2645.0,3.78058]
[1739158996002,0.8139,2645.5,2644.7,0.8154]
[1739158996210,3.78045,2645.2,2644.4,4.59694]
[1739158996389,0.8139,2645.5,2644.3,3.78166]
[1739158996390,3.78094,2644.9,2644.3,3.78166]
[1739158996594,3.78057,2645.1,2644.5,3.78132]
[1739158996905,0.8139,2645.5,2644.3,3.78166]
[1739158997107,3.78113,2644.8,2644.0,3.78203]
[1739158997305,0.8139,2644.8,2643.6,3.78264]
[1739158997467,3.78181,2644.3,2643.7,3.7825]
[1739158997807,3.78181,2644.3,2643.2,8.96744255]
[1739158997808,3.78286,2643.5,2643.2,0.56084545]
[1739158998022,0.8139,2643.5,2643.2,0.56084545]
[1739158998184,8.37676,2644.5,2643.4,3.94259301]
[1739158998369,3.78164,2644.4,2643.4,0.15959301]
[1739158998572,3.78161,2644.4,2643.7,3.78253]
[1739158998769,3.78186,2644.2,2643.6,3.78269]
[1739158999312,0.76477535,2644.3,2643.8,3.78241]
[1739158999513,0.76477535,2644.3,2643.6,3.78269]
[1739158999514,0.8139,2644.5,2644.1,3.78193]
[1739158999670,0.8139,2644.5,2643.4,3.15959301]
[1739158999671,0.8139,2644.5,2643.9,3.78224]
[1739158999870,0.8139,2644.5,2644.0,3.78213]
[1739159000186,0.8139,2644.5,2643.9,3.78224]
[1739159000187,4.59538,2644.5,2643.9,3.78224]
[1739159000415,0.8139,2644.5,2644.0,3.78203]
[1739159000606,0.8139,2644.5,2643.9,3.78224]
[1739159000941,3.78174,2644.3,2643.4,0.15959301]
[1739159001149,0.75735549,2644.7,2643.4,0.15959301]
[1739159001150,3.7823,2643.9,2643.4,0.15959301]
[1739159001332,3.78231,2643.9,2643.4,0.15959301]
[1739159001515,3.78216,2644.0,2643.4,0.15959301]
[1739159002148,3.78216,2644.0,2643.4,3.94258301]
[1739159002359,3.78216,2644.0,2643.4,0.15959301]
[1739159002849,3.78216,2644.0,2643.4,3.94249301]
[1739159003352,0.74883562,2644.0,2643.4,0.15959301]
[1739159003552,0.8139,2645.1,2643.4,0.97499301]
[1739159003754,0.8139,2645.8,2645.3,3.78026]
[1739159003925,3.77975,2645.7,2645.1,3.78057]
[1739159004124,3.77975,2645.7,2645.0,3.78069]
[1739159004327,0.8139,2645.1,2643.9,3.78215]
[1739159004547,3.78113,2644.8,2643.9,3.78225]
[1739159004717,3.7811,2644.8,2643.9,3.78225]
[1739159005050,3.78086,2644.9,2644.2,3.78182]
[1739159005250,3.78101,2644.8,2644.1,3.7819]
[1739159005457,3.78071,2645.0,2644.1,3.7819]
[1739159005628,3.78087,2644.9,2644.1,3.7819]
[1739159005835,0.8139,2645.1,2643.8,0.8154]
[1739159006149,0.8139,2645.1,2644.6,3.78128]
[1739159006730,0.8139,2645.1,2644.5,3.78142]
[1739159007115,0.8139,2645.1,2643.8,0.8154]
[1739159007318,0.8139,2644.4,2643.8,3.78233]
[1739159007649,0.8139,2644.4,2643.4,0.15959301]
[1739159007901,3.78216,2644.0,2643.4,3.94257301]
[1739159008212,0.8139,2643.8,2643.4,0.15959301]
[1739159008409,3.7827,2643.7,2643.4,0.15959301]
[1739159008711,0.8139,2643.8,2643.4,0.15959301]
[1739159009126,3.7826,2643.7,2643.4,0.15959301]
[1739159009830,0.8139,2643.8,2643.4,3.94257301]
[1739159010119,5.36441263,2644.2,2643.6,3.78262]
[1739159010324,4.59579,2644.2,2643.4,3.94254301]
[1739159010480,3.782,2644.1,2643.4,3.94257301]
[1739159010682,3.78204,2644.1,2643.4,3.94257301]
[1739159010878,0.8139,2644.2,2643.4,0.15959301]
[1739159011122,3.7824,2643.9,2643.4,0.15959301]
[1739159011333,0.8139,2644.2,2643.4,0.15959301]
[1739159011509,0.8139,2644.2,2643.9,3.78216]
[1739159011709,0.8139,2644.2,2643.7,3.78253]
[1739159012223,0.8139,2644.2,2643.9,3.78224]
[1739159012430,0.8139,2644.5,2644.1,3.7819]
[1739159012637,3.7809,2644.9,2644.3,3.78167]
[1739159012925,0.8139,2644.8,2644.3,3.78167]
[1739159013077,3.78115,2644.7,2643.9,3.78224]
[1739159013278,3.78155,2644.5,2643.7,3.78248]
[1739159013488,3.78155,2644.5,2643.9,3.78228]
[1739159013687,3.78119,2644.7,2644.1,3.782]
[1739159013916,0.8139,2644.8,2644.1,3.78193]
[1739159014125,3.78129,2644.6,2643.9,3.78224]
[1739159014305,0.8139,2644.8,2644.4,3.78143]
[1739159014831,3.78162,2644.4,2643.7,3.78248]
[1739159014995,0.8139,2644.2,2643.5,3.78276]
[1739159015202,0.8139,2644.2,2643.7,3.78255]
[1739159015509,3.78218,2644.0,2643.3,3.7831]
[1739159015683,3.78218,2644.0,2643.1,0.8154]
[1739159015877,0.8139,2644.2,2643.5,3.78282]
[1739159015878,8.37776,2644.2,2643.5,3.78282]
[1739159016118,8.37776,2644.2,2643.3,3.78314]
[1739159016119,1.58728694,2644.2,2643.3,3.78314]
[1739159016330,3.78311,2643.4,2642.7,4.34475545]
[1739159016505,0.7933,2643.7,2643.0,3.78344]
[1739159016706,4.57588,2643.7,2643.0,3.78344]
[1739159016909,3.78275,2643.6,2643.0,3.78344]
[1739159017423,0.7933,2643.7,2643.1,3.78336]
[1739159017583,0.7933,2643.7,2643.0,3.78344]
[1739159017936,3.78324,2643.3,2642.6,3.78405]
[1739159018427,3.78291,2643.5,2642.4,3.78443]
[1739159018628,5.34499057,2643.7,2642.9,3.78367]
[1739159018923,3.78319,2643.3,2642.5,3.78428]
[1739159019264,0.7933,2643.2,2642.5,3.78419]
[1739159019429,3.7838,2642.9,2642.2,3.7847]
[1739159019765,1.5627492,2643.2,2642.0,3.78501]
[1739159019905,0.7933,2643.2,2642.7,3.78396]
[1739159020105,0.7933,2643.2,2642.8,3.78374]
[1739159020365,0.74476261,2643.3,2642.8,3.78374]
[1739159020855,0.74476261,2643.3,2642.9,3.78368]
[1739159021055,0.74476261,2643.3,2642.8,3.78374]
[1739159021222,3.78344,2643.1,2642.5,3.78427]
[1739159021405,0.7933,2643.0,2642.2,3.78466]
[1739159021610,0.7933,2643.0,2642.4,3.78433]
[1739159022107,0.7933,2643.0,2642.7,3.78389]
[1739159022351,0.74476261,2643.3,2642.9,3.7837]
[1739159022553,0.74476261,2643.3,2642.9,7.56732]
[1739159022724,0.74476261,2643.3,2642.9,3.78362]
[1739159022916,0.74476261,2643.3,2642.0,4.5913]
[1739159023257,0.74476261,2643.3,2642.8,3.78377]
[1739159023416,0.74476261,2643.3,2643.0,3.78347]
[1739159023618,0.783,2643.4,2643.0,3.78347]
[1739159023917,0.783,2644.0,2643.3,3.78309]
[1739159024262,3.78256,2643.8,2643.2,3.78329]
[1739159024436,3.78256,2643.8,2642.4,5.14601964]
[1739159024437,3.78289,2643.5,2642.8,3.78386]
[1739159024638,0.783,2643.7,2643.4,3.78289]
[1739159024842,0.783,2643.7,2643.3,3.78303]
[1739159025358,0.783,2643.7,2643.0,4.54302]
[1739159025664,0.783,2644.2,2643.9,3.78227]
[1739159025954,0.783,2644.2,2643.7,3.78255]
[1739159027362,3.78201,2644.1,2643.5,3.7828]
[1739159027542,1.54252243,2644.2,2643.8,3.78229]
[1739159028119,1.54252243,2644.2,2643.9,3.7822]
[1739159028427,1.54252243,2644.2,2644.0,3.78214]
[1739159028631,0.783,2644.2,2643.9,3.7822]
[1739159028944,0.783,2644.2,2643.7,3.78251]
[1739159028945,0.783,2644.2,2643.8,3.78243]
[1739159029114,0.783,2644.2,2643.7,3.78251]
[1739159029115,4.56487,2644.2,2643.5,3.78276]